{"text_format":"3","workbook":"xlsx","n_sheets":4,"sheets":["7-8 классы","9 класс","10 класс","11 класс"],"read":"whole","date_system":"1900"}

{"sheet":"7-8 классы","index":0,"n_rows":20,"n_cols":33,"rows_kept":20}
["№","Район","Код участника","Название ОУ","СНИЛС","Фамилия","Имя","Отчество","Пол","Дата рождения","Участник с ОВЗ","Класс","Класс участия","В1","В2","В3","В4","В5","В6","Балл","ВА1","ВА2","ВА3","ВА4","ВА5","ВА6","Итоговый балл","Макс. балл","Статус","Призер республиканского / регионального этапа прошлого года","Учитель","Место работы учителя","Предмет"]
[1,"Сабинский","454010_16155825773_22","Муниципальное бюджетное общеобразовательное учреждение \"Мичанская основная общеобразовательная школа  Сабинского муниципального района Республики Татарстан\"","16155825773","Нигаматзянов","Асхат","Завдатович ","м","11.08.2010 ","нет","8","7-8",0,0,1,0,0,0,{"$f":"SUM(N2:S2)","v":1},null,null,"+",{"$nulls":3},{"$f":"T2","v":1},48,"участник","нет","Сабирзянова Финя Магруфовна ","Муниципальное бюджетное общеобразовательное учреждение \"Мичанская основная общеобразовательная школа  Сабинского муниципального района Республики Татарстан\"","астрономия"]
[2,"Сабинский","454020_16255910266_22","Муниципальное бюджетное общеобразовательное учреждение \"Большекибячи нская средняя общеобразовательная школа Сабинского муниципального района Республики Татарстан\"","16255910266","Сиразеева","Индиля","Ильнуровна","ж","13.10.2010","нет","7","7-8",1,0,1,1,0,0,{"$f":"SUM(N3:S3)","v":3},{"$nulls":6},{"$f":"T3","v":3},48,"участник","нет","Вильданова Аниса Габдулгазизовна","Муниципальное бюджетное общеобразовательное учреждение \"Большекибячи нская средняя общеобразовательная школа Сабинского муниципального района Республики Татарстан\"","астрономия"]
[3,"Сабинский","454006_16658662013_22","Муниципальное бюджетное общеобразовательное учреждение \"Юлбатская основная общеобразовательная школа  Сабинского муниципального района Республики Татарстан\"","16658662013","Тухбатуллин","Салим","Фанисович","м","12.06.2011","нет","7","7-8",2,0,1,"Х",0,1,4,{"$nulls":6},4,48,"участник","нет","Хасанова Миляуша Мулламухаметовна","Муниципальное бюджетное общеобразовательное учреждение \"Юлбатская основная общеобразовательная школа  Сабинского муниципального района Республики Татарстан\"","астрономия"]
[4,"Сабинский","451002_16217461653_22","Муниципальное бюджетное общеобразовательное учреждение «Центр образования «ОНИКС» для одаренных детей» Сабинского муниципального района Республики Татарстан","162-174-616 53","Имамутдинов","Габдельгазиз","Газинурович","м","28.09.2010","нет","7","7-8",1,0,6,1,2,8,18,{"$nulls":6},18,48,"участник",null,"Сафин Айтуган Дамирович","Муниципальное бюджетное общеобразовательное учреждение «Центр образования «ОНИКС» для одаренных детей» Сабинского муниципального района Республики Татарстан","астрономия"]
[5,"Сабинский","451002_16401768657_22","Муниципальное бюджетное общеобразовательное учреждение «Центр образования «ОНИКС» для одаренных детей» Сабинского муниципального района Республики Татарстан","164-017-686 57","Хазиахметов ","Ирек","Искандерович","м","09.02.2011","нет","7","7-8",0,0,0,0,2,"Х",2,{"$nulls":6},2,48,"участник",null,"Сафин Айтуган Дамирович","Муниципальное бюджетное общеобразовательное учреждение «Центр образования «ОНИКС» для одаренных детей» Сабинского муниципального района Республики Татарстан","астрономия"]
[6,"Сабинский","451002_15790256389_22","Муниципальное бюджетное общеобразовательное учреждение «Центр образования «ОНИКС» для одаренных детей» Сабинского муниципального района Республики Татарстан","157-902-563 89","Гапдерахманов","Инсаф","Искандерович","м","10.02.2010","нет","8","7-8",1,2,8,6,1,1,19,null,null,"+",{"$nulls":3},19,48,"участник",null,"Сафин Айтуган Дамирович","Муниципальное бюджетное общеобразовательное учреждение «Центр образования «ОНИКС» для одаренных детей» Сабинского муниципального района Республики Татарстан","астрономия"]
[7,"Сабинский","451002_15845769507_22","Муниципальное бюджетное общеобразовательное учреждение «Центр образования «ОНИКС» для одаренных детей» Сабинского муниципального района Республики Татарстан","156-457-695 07","Сунагатуллин","Айрат","Алмазович","м","30.10.2009","нет","8","7-8",1,0,8,1,0,0,10,{"$nulls":3},"+",null,null,10,48,"участник",null,"Сафин Айтуган Дамирович","Муниципальное бюджетное общеобразовательное учреждение «Центр образования «ОНИКС» для одаренных детей» Сабинского муниципального района Республики Татарстан","астрономия"]
[8,"Сабинский","454019_16408992596_22","Муниципальное бюджетное общеобразовательное учреждение \"Верхнесиметская средняя общеобразовательная школа Сабинского муниципального района Республики Татарстан\"","16408992596","Шайхлиева","Малика","Динаровна","ж","13.02.2011","нет","7","7-8",1,0,0,0,0,1,2,{"$nulls":6},2,48,"участник","нет","Исмагилов Айдар Айратович","Муниципальное бюджетное общеобразовательное учреждение \"Верхнесиметская средняя общеобразовательная школа Сабинского муниципального района Республики Татарстан\"","астрономия"]
[9,"Сабинский","454008_16705245565_22","Муниципальное бюджетное общеобразовательное учреждение \"Тимершикская средняя общеобразовательная школа Сабинского муниципального района Республики Татарстан\"","16705245565","Валиев","Амир","Рафисович","м","03/07/2011","нет","7","7-8",1,0,8,3,"Х",1,13,{"$nulls":6},13,48,"участник","нет","Ахметова Ильсияр Миннемухаметовна","Муниципальное бюджетное общеобразовательное учреждение  \"Тимершикская средняя общеобразовательная школа Сабинского муниципального района  Республики Татарстан\"","астрономия"]
[10,"Сабинский","454008_16705245565_22","Муниципальное бюджетное общеобразовательное учреждение \"Тимершикская средняя общеобразовательная школа Сабинского муниципального района Республики Татарстан\"","157-846-153 04","Газимзянова","Разиля","Юнусовна","ж","07.02.2010","нет","8","7-8",0,0,8,0,"Х",1,9,null,"+",{"$nulls":4},9,48,"участник","нет","Ахметова Ильсияр Миннемухаметовна","Муниципальное бюджетное общеобразовательное учреждение  \"Тимершикская средняя общеобразовательная школа Сабинского муниципального района  Республики Татарстан\"","астрономия"]
[11,"Сабинский","454014_16761084482_22","муниципальное бюджетное общеобразовательное учреждение \"Кильдебякская средняя общеобразовательная школа Сабинского муниципального района Республики Татарстан\"","16761084482","Сибгатуллина","Лейсан","Ирековна","ж","22.06.2011","нет","7","7-8",0,0,1,"Х","Х",1,2,{"$nulls":6},2,48,"участник","нет","Фазылова Гузелия Габдуллаяновна","муниципальное бюджетное общеобразовательное учреждение \"Кильдебякская средняя общеобразовательная школа Сабинского муниципального района Республики Татарстан\"","астрономия"]
[12,"Сабинский","454014_17309056966_22","муниципальное бюджетное общеобразовательное учреждение \"Кильдебякская средняя общеобразовательная школа Сабинского муниципального района Республики Татарстан\"","17309056966","Тухфатуллин","Анвар","Римович","м","06.02.2011","нет","8","7-8",0,"Х",0,"Х","Х","Х",0,"+",{"$nulls":5},0,48,"участник","нет","Фазылова Гузелия Габдуллаяновна","муниципальное бюджетное общеобразовательное учреждение \"Кильдебякская средняя общеобразовательная школа Сабинского муниципального района Республики Татарстан\"","астрономия"]
[13,"Сабинский","454016_15846539610_22","государственное бюджетное общеобразовательное учреждение \"Икшурминская кадетская школа-интернат имени Байкиева К.С.\"","15846539610","Давлетгараев","Раяз","Ниязович","м","05.04.2010","нет","8","7-8","Х",1,"Х","Х","Х","Х",1,{"$nulls":6},1,48,"участник","нет","Хидиятуллин Айрат Нурфаязович","государственное бюджетное общеобразовательное учреждение \"Икшурминская кадетская школа-интернат имени Байкиева К.С.\"","астрономия"]
[14,"Сабинский","451001_15938109798_22","Муниципальное бюджетное общеобразовательное учреждение \"Гимназия п.г.т. Богатые Сабы Сабинского муниципального района Республики Татарстан\"","15938109798","Валиева","Марьям","Азатовна","ж","19.04.2010","нет","8","7-8",1,1,8,1,"Х",1,12,null,"+",{"$nulls":4},12,48,"участник","нет","Ахметова Ильсияр Миннемухаметовна","Муниципальное бюджетное общеобразовательное учреждение \"Гимназия п.г.т. Богатые Сабы Сабинского муниципального района Республики Татарстан\"","астрономия"]
[15,"Сабинский","451001_16428439988_22","Муниципальное бюджетное общеобразовательное учреждение \"Гимназия п.г.т. Богатые Сабы Сабинского муниципального района Республики Татарстан\"","16428439988","Насибуллин","Тимур","Ильнурович","м","01.02.2011","нет","7","7-8",0,0,0,0,0,1,1,{"$nulls":6},1,48,"участник","нет","Хафизов Разиль Фанилевич","Муниципальное бюджетное общеобразовательное учреждение \"Гимназия п.г.т. Богатые Сабы Сабинского муниципального района Республики Татарстан\"","астрономия"]
[16,"Сабинский","451024_16736116981_22","Муниципальное бюджетное общеобразовательное учреждение \"Сабинская средняя общеобразовательная школа Сабинского муниципального района Республики Татарстан\"","16736116981","Каримов","Ислам","Робертович","м","12.07.2011","нет","7","7-8","Х","0","Х","Х","Х",3,3,{"$nulls":6},3,48,"участник","нет","Зарипова Луиза Ильнуровна","Муниципальное бюджетное общеобразовательное учреждение \"Сабинская средняя общеобразовательная школа Сабинского муниципального района Республики Татарстан\"","астрономия"]
[17,"Сабинский","451024_16272091556_22","Муниципальное бюджетное общеобразовательное учреждение \"Сабинская средняя общеобразовательная школа Сабинского муниципального района Республики Татарстан\"","16272091556","Хузин","Инсаф","Ильшатович","м","28.10.2010","нет","7","7-8",0,4,4,0,"Х","Х",8,{"$nulls":6},8,48,"участник","нет","Зарипова Луиза Ильнуровна","Муниципальное бюджетное общеобразовательное учреждение \"Сабинская средняя общеобразовательная школа Сабинского муниципального района Республики Татарстан\"","астрономия"]
[18,"Сабинский","452003_15882237093_22","Муниципальное бюджетное общеобразовательное учреждение \"Шеморданский лицей \"Рост\" Сабинского муниципального района Республики Татарстан\"","15882237093","Файзрахманов","Карим","Рустемович","м","16.04.2010","нет","8","7-8",0,0,8,1,0,0,9,"+",{"$nulls":5},9,48,"участник","нет","Григорьева Надежда Алексеевна","Муниципальное бюджетное общеобразовательное учреждение \"Шеморданский лицей \"Рост\" Сабинского муниципального района Республики Татарстан\"","астрономия"]
[19,"Сабинский","452003_15591350978_22","Муниципальное бюджетное общеобразовательное учреждение \"Шеморданский лицей \"Рост\" Сабинского муниципального района Республики Татарстан\"","15591350978","Юнусов","Ихсан","Рустемович","м","08.09.2009","нет","8","7-8",1,0,4,4,0,0,9,"+",{"$nulls":5},9,48,"участник","нет","Григорьева Надежда Алексеевна","Муниципальное бюджетное общеобразовательное учреждение \"Шеморданский лицей \"Рост\" Сабинского муниципального района Республики Татарстан\"","астрономия"]

{"sheet":"9 класс","index":1,"n_rows":8,"n_cols":33,"rows_kept":8}
["№","Район","Код участника","Название ОУ","СНИЛС","Фамилия","Имя","Отчество","Пол","Дата рождения","Участник с ОВЗ","Класс","Класс участия","В1","В2","В3","В4","В5","В6","Балл","ВА1","ВА2","ВА3","ВА4","ВА5","ВА6","Итоговый балл","Макс. балл","Статус","Призер республиканского / регионального этапа прошлого года","Учитель","Место работы учителя","Предмет"]
[1,"Сабинский","451002_15672531174_22","Муниципальное бюджетное общеобразовательное учреждение «Центр образования «ОНИКС» для одаренных детей» Сабинского муниципального района Республики Татарстан","156-725-311 74","Шакиров","Шаукат","Ильсурович","м","29.01.2009","нет",9,9,"Х",1,"Х",0,0,"Х",{"$f":"SUM(N2:S2)","v":1},null,"+",{"$nulls":4},{"$f":"T2","v":1},48,"участник","нет","Сафин Айтуган Дамирович","Муниципальное бюджетное общеобразовательное учреждение «Центр образования «ОНИКС» для одаренных детей» Сабинского муниципального района Республики Татарстан","астрономия"]
[2,"Сабинский","451002_15571244563_22","Муниципальное бюджетное общеобразовательное учреждение «Центр образования «ОНИКС» для одаренных детей» Сабинского муниципального района Республики Татарстан","155-712-445 63","Шарифуллин","Ранис","Ралифович","м","03.08.2009","нет",9,9,0,1,0,4,0,1,6,null,"+",{"$nulls":4},{"$f":"T3","v":6},48,"участник","нет","Сафин Айтуган Дамирович","Муниципальное бюджетное общеобразовательное учреждение «Центр образования «ОНИКС» для одаренных детей» Сабинского муниципального района Республики Татарстан","астрономия"]
[3,"Сабинский","451002_15706864489_22","Муниципальное бюджетное общеобразовательное учреждение «Центр образования «ОНИКС» для одаренных детей» Сабинского муниципального района Республики Татарстан","157-068-644 89","Гатауллина","Гульфия","Ильгизаровна","ж","02.01.2009","нет",9,9,1,"Х",0,0,"Х",1,{"$f":"SUM(N4:S4)","v":2},"+",{"$nulls":5},2,"48/","участник","нет","Сафин Айтуган Дамирович","Муниципальное бюджетное общеобразовательное учреждение «Центр образования «ОНИКС» для одаренных детей» Сабинского муниципального района Республики Татарстан","астрономия"]
[4,"Сабинский","454008_15718395395_22","Муниципальное бюджетное общеобразовательное учреждение  \"Тимершикская средняя общеобразовательная школа Сабинского муниципального района  Республики Татарстан\"","15718395395","Загидуллина","Ильвина ","Финарисовна","ж","18.02.2009","нет",9,9,0,0,0,0,0,1,{"$f":"SUM(N5:S5)","v":1},null,"+",{"$nulls":4},1,48,"участник","нет","Ахметова Ильсияр Миннемухаметовна","Муниципальное бюджетное общеобразовательное учреждение  \"Тимершикская средняя общеобразовательная школа Сабинского муниципального района  Республики Татарстан\"","астрономия"]
[5,"Сабинский","451001_15577473305_22","Муниципальное бюджетное общеобразовательное учреждение \"Гимназия п.г.т. Богатые Сабы Сабинского муниципального района Республики Татарстан\"","15577473305","Хадеев","Ильсаф","Ленарович","м","18.08.2009","нет",9,9,0,0,1,0,0,1,2,"+",{"$nulls":5},2,48,"участник","нет","Фатыхова Тамчыгуль Каримовна","Муниципальное бюджетное общеобразовательное учреждение \"Гимназия п.г.т. Богатые Сабы Сабинского муниципального района Республики Татарстан\"","астрономия"]
[6,"Сабинский","451024_15846540090_22","Муниципальное бюджетное общеобразовательное учреждение \"Сабинская средняя общеобразовательная школа Сабинского муниципального района Республики Татарстан\"",15846540090,"Ханов","Ильдан","Ильнурович","м","03.11.2008","нет",9,9,1,1,"Х","Х",0,1,3,"+",{"$nulls":5},3,48,"участник","нет","Зарипова Луиза Ильнуровна","Муниципальное бюджетное общеобразовательное учреждение \"Сабинская средняя общеобразовательная школа Сабинского муниципального района Республики Татарстан\"","астрономия"]
[7,"Сабинский","454009_15733720064_22","Муниципальное бюджетное общеобразовательное учреждение \"Сатышевская средняя общеобразовательная школа Сабинского муниципального района Республики Татарстан им. Ш.З.Зиннурова\"","15733720064","Хазиев","Ильсур","Ильгизарович","м","27.02.2009","нет","9","9",0,0,1,0,0,1,2,"+",{"$nulls":5},2,48,"участник","нет","Рахимов Радиф Мулламухаметович","Муниципальное бюджетное общеобразовательное учреждение \"Сатышевская средняя общеобразовательная школа Сабинского муниципального района Республики Татарстан им. Ш.З.Зиннурова\"","астрономия"]

{"sheet":"10 класс","index":2,"n_rows":4,"n_cols":33,"rows_kept":4}
["№","Район","Код участника","Название ОУ","СНИЛС","Фамилия","Имя","Отчество","Пол","Дата рождения","Участник с ОВЗ","Класс","Класс участия","В1","В2","В3","В4","В5","В6","Балл","ВА1","ВА2","ВА3","ВА4","ВА5","ВА6","Итоговый балл","Макс. балл","Статус","Призер республиканского / регионального этапа прошлого года","Учитель","Место работы учителя","Предмет"]
[1,"Сабинский","451001_15826654396_22","Муниципальное бюджетное общеобразовательное учреждение \"Гимназия п.г.т. Богатые Сабы Сабинского муниципального района Республики Татарстан\"",15826654396,"Вафин","Зульфат","Фаритович","м","2008-05-26","нет",10,"10",0,1,0,0,0,0,{"$f":"SUM(N2:S2)","v":1},null,"+",{"$nulls":4},{"$f":"T2","v":1},48,"участник","нет","Хафизов Разиль Фанилевич","Муниципальное бюджетное общеобразовательное учреждение \"Гимназия п.г.т. Богатые Сабы Сабинского муниципального района Республики Татарстан\"","астрономия"]
[2,"Сабинский","452003_16056569476_22","Муниципальное бюджетное общеобразовательное учреждение \"Шеморданский лицей \"Рост\" Сабинского муниципального района Республики Татарстан\"",16056569476,"Камалутдинова","Вероника","Маратовна","ж","2008-01-22","нет",10,"10","х","х",0,4,"х",0,{"$f":"SUM(N3:S3)","v":4},null,"+",{"$nulls":4},{"$f":"T3","v":4},48,"участник","нет","Григорьева Надежда Алексеевна","Муниципальное бюджетное общеобразовательное учреждение \"Шеморданский лицей \"Рост\" Сабинского муниципального района Республики Татарстан\"","астрономия"]
[3,"Сабинский","452003_15866085104_22","Муниципальное бюджетное общеобразовательное учреждение \"Шеморданский лицей \"Рост\" Сабинского муниципального района Республики Татарстан\"",15866085104,"Шарипова","Азалия","Ранифовна","ж","2008-05-21","нет",10,"10","х",1,0,0,0,0,{"$f":"SUM(N4:S4)","v":1},"+",{"$nulls":5},1,48,"участник","нет","Григорьева Надежда Алексеевна","Муниципальное бюджетное общеобразовательное учреждение \"Шеморданский лицей \"Рост\" Сабинского муниципального района Республики Татарстан\"","астрономия"]

{"sheet":"11 класс","index":3,"n_rows":3,"n_cols":33,"rows_kept":3}
["№","Район","Код участника","Название ОУ","СНИЛС","Фамилия","Имя","Отчество","Пол","Дата рождения","Участник с ОВЗ","Класс","Класс участия","В1","В2","В3","В4","В5","В6","Балл","ВА1","ВА2","ВА3","ВА4","ВА5","ВА6","Итоговый балл","Макс. балл","Статус","Призер республиканского / регионального этапа прошлого года","Учитель","Место работы учителя","Предмет"]
[1,"Сабинский","454008_14907202454_22","Муниципальное бюджетное общеобразовательное учреждение \"Тимершикская средняя общеобразовательная школа Сабинского муниципального района Республики Татарстан\"","15497928123","Тимербаев ","Тимур","Ильвирович","м","19.10.2007","нет","11","11",1,0,"х","х",2,0,{"$f":"SUM(N2:S2)","v":3},"+",{"$nulls":5},{"$f":"T2","v":3},48,"участник","нет","Ахметова Ильсияр Миннемухаметовна","Муниципальное бюджетное общеобразовательное учреждение  \"Тимершикская средняя общеобразовательная школа Сабинского муниципального района  Республики Татарстан\"","астрономия"]
[3,"Сабинский","451001_15589343611_22","Муниципальное бюджетное общеобразовательное учреждение \"Гимназия п.г.т. Богатые Сабы Сабинского муниципального района Республики Татарстан\"","15589343611","Валимухаметов","Рим","Рафилевич","м","31.01.2007","нет","11","11","Х","Х",0,1,2,0,{"$f":"SUM(N3:S3)","v":3},"+",{"$nulls":5},{"$f":"T3","v":3},48,"участник","нет","Хафизов Разиль Фанилевич","Муниципальное бюджетное общеобразовательное учреждение \"Гимназия п.г.т. Богатые Сабы Сабинского муниципального района Республики Татарстан\"","астрономия"]